fUST/lending_fUST_20260129
["ID","MTS","AMOUNT","RATE_DAILY","PERIOD"]
[403946444,1769685043761,-1887.55672302,0.00016892,2]
[403946446,1769685043770,-426.027785,0.00016895,7]
[403946448,1769685043779,-217.43292674,0.00016895,2]
[403946450,1769685043788,-208.876148,0.00016899,7]
[403946452,1769685043797,-526.0,0.00016911,2]
[403946454,1769685043807,-526.0,0.00016974,2]
[403946456,1769685043816,-999.999999,0.00017,2]
[403946458,1769685043825,-3294.436903,0.00017035,7]
[403946460,1769685043833,-29925.580467,0.00017035,7]
[403946462,1769685043843,-3322.001737,0.00017035,7]
[403946464,1769685043852,-160.619323,0.00017035,7]
[403946466,1769685043861,-1462.133038,0.00017035,7]
[403946467,1769685043869,-1152.0,0.00017137,2]
[403946469,1769685043879,-526.0,0.00017168,2]
[403946471,1769685043888,-176.9863264,0.00017177,2]
[403946474,1769685043897,-526.0,0.00017258,2]
[403946476,1769685043908,-1748.41119797,0.0001729,6]
[403946478,1769685043917,-4626.895246,0.00017297,2]
[403946480,1769685043926,-3449.14412057,0.00017379,2]
[403946482,1769685043935,-500.0,0.00017469,2]
[403946484,1769685043946,-500.0,0.00017469,2]
[403946486,1769685043959,-295.03186284,0.00017469,2]
[403946487,1769685043972,-1325.61,0.00017469,2]
[403946488,1769685043986,-1325.61,0.00017469,2]
[403946489,1769685044000,-50953.09696953,0.0001747,2]
[403946490,1769685044010,-526.0,0.00017511,2]
[403946491,1769685044020,-332.0,0.00017562,3]
[403946492,1769685044032,-780.0,0.000176,2]
[403946493,1769685044044,-428.14862299,0.00017614,2]
[403946494,1769685044055,-526.0,0.00017719,2]
[403946495,1769685044068,-938.276117,0.00017719,7]
[403946496,1769685044080,-1000.0,0.00017757,2]
[403946497,1769685044093,-244.0,0.00017757,2]
[403946498,1769685044105,-163.16,0.00017766,2]
[403946499,1769685044117,-21601.08739889,0.000179,2]
[403946500,1769685044129,-151.551911,0.000179,2]
[403946501,1769685044141,-151.0,0.000179,2]
[403946502,1769685044154,-153.250577,0.000179,2]
[403946503,1769685044165,-153.250577,0.000179,2]
[403946504,1769685044176,-153.250577,0.000179,2]
[403946505,1769685044187,-153.250577,0.000179,2]
[403946507,1769685044200,-3576.76245303,0.00017927,2]
[403946510,1769685044212,-4626.895246,0.00017969,2]
[403946515,1769685044223,-326.616218,0.00017969,2]
[403946518,1769685044235,-326.616218,0.00017969,2]
[403946521,1769685044248,-326.616218,0.00017969,2]
[403946524,1769685044260,-326.616218,0.00017969,2]
[403946529,1769685044271,-287.536478,0.00017969,2]
[403946531,1769685044282,-287.536478,0.00017969,2]
[403946533,1769685044292,-287.536478,0.00017969,2]
[403946535,1769685044303,-287.536478,0.00017969,2]
[403946537,1769685044315,-500.0,0.00018,30]
[403946539,1769685044328,-9303.66060408,0.00018,2]
[403946542,1769685044344,-1325.61,0.00018065,2]
[403946544,1769685044357,-116598.09,0.00018082,3]
[403946546,1769685044369,-2150.0,0.000181,2]
[403946548,1769685044381,-1369.0,0.000181,2]
[403946551,1769685044392,-630.0,0.000181,2]
[403946553,1769685044405,-418.0,0.000181,2]
[403946555,1769685044417,-418.0,0.000181,2]
[403946557,1769685044430,-716.0,0.000181,2]
[403946560,1769685044442,-179.0,0.000181,2]
[403946562,1769685044455,-3909.48303508,0.000183,3]
[403946617,1769685044958,-3e-08,0.00014091,2]
[403946827,1769685046627,-833.19441317,0.00012329,2]
[403946955,1769685047702,-417.10558683,0.00012329,2]
[403946957,1769685047711,-433.08923222,0.00013561,2]
[403950353,1769685085642,342.5808829,0.0001179,2]
[403950362,1769685087207,500.0,0.0001179,2]
[403950365,1769685087233,368.05199597,0.0001179,2]
[403950366,1769685087262,500.0,0.0001179,2]
[403950367,1769685087291,500.0,0.0001179,2]
[403950368,1769685087319,500.0,0.0001179,2]
[403950369,1769685087352,500.0,0.0001179,2]
[403950370,1769685087380,500.0,0.0001179,2]
[403950371,1769685087411,500.0,0.0001179,2]
[403950372,1769685087440,500.0,0.0001179,2]
[403950373,1769685087467,500.0,0.0001179,2]
[403950374,1769685087495,500.0,0.0001179,2]
[403950375,1769685087523,500.0,0.0001179,2]
[403950376,1769685087549,500.0,0.0001179,2]
[403950377,1769685087575,500.0,0.0001179,2]
[403950378,1769685087602,500.0,0.0001179,2]
[403950379,1769685087634,500.0,0.0001179,2]
[403950380,1769685087661,237.7713041,0.0001179,2]
[403950381,1769685087690,500.0,0.0001179,2]
[403950382,1769685087718,500.0,0.0001179,2]
[403950383,1769685087746,500.0,0.0001179,2]
[403950384,1769685087774,51.60581703,0.0001179,2]
[403950385,1769685087796,448.39418297,0.0001179,2]
[403950386,1769685087825,500.0,0.0001179,2]
[403950387,1769685087854,500.0,0.0001179,2]
[403950388,1769685087881,500.0,0.0001179,2]
[403950389,1769685087910,500.0,0.0001179,2]
[403950390,1769685087938,500.0,0.0001179,2]
[403950391,1769685087965,500.0,0.0001179,2]
[403950392,1769685087992,579.75009319,0.0001179,2]
[403950393,1769685088019,500.0,0.0001179,2]
[403950394,1769685088053,500.0,0.0001179,2]
[403950395,1769685088085,500.0,0.0001179,2]
[403950396,1769685088120,500.0,0.0001179,2]
[403950397,1769685088152,500.0,0.0001179,2]
[403950398,1769685088178,500.0,0.0001179,2]
[403950399,1769685088205,500.0,0.0001179,2]
[403950400,1769685088232,500.0,0.0001179,2]
[403950401,1769685088265,500.0,0.0001179,2]
[403950402,1769685088294,500.0,0.0001179,2]
[403950403,1769685088326,500.0,0.0001179,2]
[403950404,1769685088360,471.86572384,0.0001179,2]
[403950405,1769685088393,28.13427616,0.0001179,2]
[403950406,1769685088424,500.0,0.0001179,2]
[403950407,1769685088453,500.0,0.0001179,2]
[403950408,1769685088481,500.0,0.0001179,2]
[403950409,1769685088510,500.0,0.0001179,2]
[403950410,1769685088539,500.0,0.0001179,2]
[403950411,1769685088566,500.0,0.0001179,2]
[403950412,1769685088595,500.0,0.0001179,2]
[403950413,1769685088623,500.0,0.0001179,2]
[403950414,1769685088652,500.0,0.0001179,2]
[403950415,1769685088678,500.0,0.0001179,2]
[403950416,1769685088706,500.0,0.0001179,2]
[403950417,1769685088734,397.9924172,0.0001179,2]
[403950421,1769685088905,453.4615417,0.0001179,2]
[403950422,1769685088934,500.0,0.0001179,2]
[403950423,1769685088962,500.0,0.0001179,2]
[403950424,1769685088988,500.0,0.0001179,2]
[403950425,1769685089028,500.0,0.0001179,2]
[403950426,1769685089060,500.0,0.0001179,2]
[403950427,1769685089088,500.0,0.0001179,2]
[403950428,1769685089117,500.0,0.0001179,2]
[403950429,1769685089145,120.42176494,0.0001179,2]
[403950434,1769685307245,-5000.0,0.00011573,2]
[403950435,1769685310166,-272.45821463,0.00011631,2]
[403950436,1769685310194,-300.0,0.00011689,2]
[403950437,1769685310385,-386.62699642,0.0001169,2]
[403950438,1769685310419,-500.0,0.0001169,2]
[403950439,1769685310449,-500.0,0.0001169,2]
[403950440,1769685310479,-500.0,0.0001169,2]
[403950441,1769685310507,-500.0,0.0001169,2]
[403950442,1769685310536,-500.0,0.0001169,2]
[403950443,1769685310566,-321.99915747,0.0001169,2]
[403950444,1769685310594,-500.0,0.0001169,2]
[403950445,1769685310622,-581.97458934,0.0001169,2]
[403950446,1769685316437,-500.0,0.0001169,2]
[403950447,1769685316469,-599.59542087,0.0001169,2]
[403950448,1769685316499,-445.34615417,0.0001169,2]
[403950449,1769685316530,-500.0,0.0001169,2]
[403950450,1769685316559,-216.14957268,0.0001169,2]
[403950451,1769685323198,5000.0,0.00011691,2]
[403950452,1769685330983,477.82770456,0.00011691,2]
[403950453,1769685331004,1064.55307425,0.00011691,2]
[403950454,1769685334445,151.0,0.000116,2]
[403950455,1769685334722,151.0,0.000116,2]
[403950456,1769685335017,151.0,0.000115,2]
[403950457,1769685335287,151.0,0.000114,2]
[403950458,1769685335576,151.0,0.000113,2]
[403950459,1769685335981,151.0,0.000113,2]
[403950460,1769685336310,151.0,0.000112,2]
[403950461,1769685336628,151.0,0.000111,2]
[403950462,1769685336924,151.0,0.000111,2]
[403950463,1769685337238,151.0,0.00011,2]
[403950464,1769685339089,5000.0,0.00011691,2]
[403950465,1769685346851,2425.45692575,0.00011691,2]
[403950466,1769685346874,2574.54307425,0.00011691,2]
[403950467,1769685363324,-5000.0,0.00011574,2]
[403950468,1769685366275,-300.0,0.0001169,2]
[403950469,1769685370144,3542.56724555,0.00011691,2]
[403950470,1769685377865,1357.72118436,0.00011691,2]
[403950472,1769685440703,-2032.43479689,0.00011458,2]
[403950473,1769685440733,-1337.52401468,0.00011574,2]
[403950474,1769685440763,-300.0,0.0001169,2]
[403950475,1769685452798,-2190.5235957,0.00011574,2]
[403950476,1769685486588,-2814.6887066,0.00011574,2]
[403950477,1769685486617,-300.0,0.0001169,2]
[403950478,1769685486646,-300.0,0.0001169,2]
[403950479,1769685498975,-6964.11462125,0.00011691,2]
[403950480,1769685505046,-5000.0,0.00011574,2]
[403950481,1769685523923,-4285.20933023,0.00011574,2]
[403950482,1769685542756,300.0,0.0001169,2]
[403950483,1769685602618,1129.59133954,0.0001169,2]
[403950484,1769685602642,70.40866046,0.0001169,2]
[403950485,1769685602672,300.0,0.0001169,2]
[403950486,1769685638755,151.0,0.000116,2]
[403950487,1769685639042,151.0,0.000116,2]
[403950488,1769685639336,151.0,0.000115,2]
[403950489,1769685639646,151.0,0.000114,2]
[403950490,1769685639922,151.0,0.000113,2]
[403950491,1769685640210,151.0,0.000113,2]
[403950492,1769685640594,151.0,0.000112,2]
[403950493,1769685640902,151.0,0.000111,2]
[403950494,1769685641272,151.0,0.000111,2]
[403950495,1769685641553,151.0,0.00011,2]
[403950496,1769685656710,5000.0,0.00011691,2]
[403950497,1769685662519,300.0,0.0001169,2]
[403950499,1769685679507,2819.60133954,0.00011691,2]
[403950500,1769685777284,-623.5,0.000114,2]
[403950501,1769685777312,-269.666,0.00011457,2]
[403950502,1769685777340,-2814.8553478,0.00011591,2]
[403950503,1769685777368,-507.87010788,0.00011591,2]
[403950504,1769685780206,-1568.22708864,0.00011591,2]
[403950505,1769685780237,-300.0,0.0001169,2]
[403950506,1769685780267,-2180.39866046,0.00011691,2]
[403950507,1769685786684,-300.0,0.0001169,2]
[403950508,1769685786758,-1441.3942509,0.00011691,2]
[403950509,1769685843162,300.0,0.0001169,2]
[403950510,1769685902208,300.0,0.0001169,2]
[403950511,1769685943084,151.0,0.000116,2]
[403950512,1769685943395,151.0,0.000116,2]
[403950513,1769685943694,151.0,0.000115,2]
[403950514,1769685943985,151.0,0.000114,2]
[403950515,1769685944387,151.0,0.000113,2]
[403950516,1769685944691,151.0,0.000113,2]
[403950517,1769685944875,3394.86,0.0003,120]
[403950518,1769685945020,151.0,0.000112,2]
[403950519,1769685945330,151.0,0.000111,2]
[403950520,1769685945805,151.0,0.000111,2]
[403950521,1769685945928,151.0,0.00011,2]
[403950522,1769685962922,300.0,0.0001169,2]
[403950527,1769686023039,300.0,0.0001169,2]
[403950530,1769686029965,2251.88427824,0.00011591,2]
[403950534,1769686082754,300.0,0.0001169,2]
[403950535,1769686126909,4738.12572176,0.00011591,2]
[403950536,1769686126934,10000.01,0.00011591,2]
[403950537,1769686126958,10000.01,0.00011591,2]
[403950538,1769686126984,10000.01,0.00011591,2]
[403950539,1769686127010,10000.01,0.00011591,2]
[403950540,1769686127036,10000.01,0.00011591,2]
[403950541,1769686127062,10000.01,0.00011591,2]
[403950542,1769686127087,10000.01,0.00011591,2]
[403950543,1769686127112,10000.01,0.00011591,2]
[403950551,1769686153929,-5000.0,0.00011375,2]
[403950552,1769686159866,-3610.58407987,0.00011375,2]
[403950553,1769686159893,-399.56977439,0.0001149,2]
[403950554,1769686159922,-300.0,0.0001159,2]
[403950555,1769686184751,-5000.0,0.00011475,2]
[403950556,1769686198155,0.01,0.00011591,2]
[403950557,1769686198179,4999.99,0.00011591,2]
[403950559,1769686221414,-592.99194095,0.00011474,2]
[403950579,1769686231564,-614.35401849,0.00011474,2]
[403950581,1769686231619,-3792.65404056,0.00011474,2]
[403950582,1769686231629,-300.0,0.0001159,2]
[403950583,1769686231639,-2692.97453221,0.00011591,2]
[403950584,1769686231653,-1667.7762393,0.00011591,2]
[403950628,1769686237707,-307624.62621133,0.00011591,2]
[403950630,1769686237721,-2530.46,0.00011591,2]
[403950634,1769686237763,-2000745.9572954,0.00011591,2]
[403950636,1769686237772,-1868.48747685,0.00011591,2]
[403950638,1769686237781,-583.0,0.00011591,2]
[403950640,1769686237790,-272.5282847,0.00011691,2]
[403950642,1769686237800,-300.0,0.00011923,2]
[403950644,1769686237809,-300.0,0.00011923,2]
[403950646,1769686237819,-300.0,0.00011923,2]
[403950647,1769686237828,-300.0,0.00011923,2]
[403950648,1769686237837,-300.0,0.00011923,2]
[403950649,1769686237846,-300.0,0.00011923,2]
[403950650,1769686237856,-300.0,0.00011923,2]
[403950651,1769686237865,-300.0,0.00011923,2]
[403950652,1769686237874,-300.0,0.00011923,2]
[403950653,1769686237883,-300.0,0.00011923,2]
[403950655,1769686237892,-300.0,0.00011923,2]
[403950656,1769686237901,-300.0,0.00011923,2]
[403950657,1769686237910,-300.0,0.00011923,2]
[403950658,1769686237919,-300.0,0.00011923,2]
[403950659,1769686237928,-300.0,0.00011923,2]
[403950660,1769686237937,-600.0,0.00011923,2]
[403950662,1769686237946,-2384.25,0.00012329,2]
[403950664,1769686237955,-1986.87,0.00012329,2]
[403950665,1769686237964,-1655.73,0.00012329,2]
[403950666,1769686237973,-2251.88427821,0.00012446,2]
[403950667,1769686237983,-25501.37425947,0.00012538,2]
[403950668,1769686237991,-420.0,0.00012728,2]
[403950669,1769686238000,-150.02158472,0.00012862,2]
[403950670,1769686238010,-500.0,0.00012999,2]
[403950671,1769686238019,-500.0,0.00012999,2]
[403950672,1769686238028,-500.0,0.00012999,2]
[403950673,1769686238195,-2737.81768824,0.00013,2]
[403950674,1769686238206,-720.0,0.00013116,2]
[403950675,1769686238215,-500.0,0.00013136,2]
[403950676,1769686238225,-500.0,0.00013136,2]
[403950677,1769686238235,-500.0,0.00013136,2]
[403950678,1769686238244,-500.0,0.00013273,2]
[403950679,1769686238253,-165.96638872,0.00013273,2]
[403950680,1769686238262,-162.52274592,0.00013273,2]
[403950681,1769686238272,-500.0,0.00013273,2]
[403950682,1769686238281,-500.0,0.00013273,2]
[403950683,1769686238291,-500.0,0.00013273,2]
[403950684,1769686238300,-500.0,0.00013273,2]
[403950685,1769686238310,-500.0,0.00013273,2]
[403950686,1769686238319,-161.6192891,0.00013273,2]
[403950687,1769686238329,-500.0,0.00013273,2]
[403950688,1769686238338,-500.0,0.00013273,2]
[403950689,1769686238347,-500.0,0.00013273,2]
[403950690,1769686238357,-316.86005023,0.00013273,2]
[403950691,1769686238366,-500.0,0.00013273,2]
[403950692,1769686238375,-500.0,0.00013273,2]
[403950693,1769686238384,-500.0,0.00013273,2]
[403950694,1769686238394,-500.0,0.00013273,2]
[403950695,1769686238404,-500.0,0.00013273,2]
[403950696,1769686238414,-500.0,0.00013273,2]
[403950697,1769686238424,-218.50816465,0.00013273,2]
[403950698,1769686238434,-536.76797533,0.00013273,2]
[403950699,1769686238444,-217.62261144,0.00013273,2]
[403950700,1769686238453,-162.28812704,0.00013273,2]
[403950701,1769686238462,-500.0,0.00013273,2]
[403950702,1769686238472,-500.0,0.00013273,2]
[403950703,1769686238481,-500.0,0.00013273,2]
[403950704,1769686238490,-500.0,0.00013273,2]
[403950705,1769686238499,-549.17716233,0.00013273,2]
[403950706,1769686238509,-500.0,0.00013273,2]
[403950707,1769686238519,-167.9297864,0.00013273,2]
[403950708,1769686238528,-500.0,0.00013273,2]
[403950709,1769686238538,-500.0,0.00013273,2]
[403950710,1769686238547,-501.83727549,0.00013273,2]
[403950711,1769686238556,-500.0,0.00013273,2]
[403950712,1769686238565,-500.0,0.00013273,2]
[403950713,1769686238575,-500.0,0.00013273,2]
[403950714,1769686238584,-500.0,0.00013273,2]
[403950715,1769686238593,-500.0,0.00013273,2]
[403950716,1769686238603,-500.0,0.00013273,2]
[403950717,1769686238612,-500.0,0.00013273,2]
[403950718,1769686238622,-500.0,0.00013273,2]
[403950719,1769686238632,-549.00671497,0.00013273,2]
[403950720,1769686238642,-500.0,0.00013273,2]
[403950721,1769686238655,-500.0,0.00013273,2]
[403950722,1769686238664,-500.0,0.00013273,2]
[403950723,1769686238674,-500.0,0.00013273,2]
[403950724,1769686238683,-500.0,0.00013273,2]
[403950725,1769686238692,-233.02595063,0.00013273,2]
[403950726,1769686238701,-159.74515792,0.00013273,2]
[403950727,1769686238711,-500.0,0.00013273,2]
[403950728,1769686238726,-500.0,0.00013273,2]
[403950729,1769686238736,-500.0,0.00013273,2]
[403950730,1769686238745,-500.0,0.00013273,2]
[403950731,1769686238755,-500.0,0.00013273,2]
[403950732,1769686238765,-500.0,0.00013273,2]
[403950733,1769686238774,-500.0,0.00013273,2]
[403950734,1769686238783,-502.31062213,0.00013273,2]
[403950735,1769686238793,-619.456376,0.00013273,2]
[403950736,1769686238804,-500.0,0.00013273,2]
[403950737,1769686238813,-500.0,0.00013273,2]
[403950738,1769686238822,-500.0,0.00013273,2]
[403950739,1769686238832,-172.04906802,0.00013273,2]
[403950740,1769686238841,-500.0,0.00013273,2]
[403950741,1769686238850,-500.0,0.00013273,2]
[403950742,1769686238860,-500.0,0.00013273,2]
[403950743,1769686238869,-500.0,0.00013273,2]
[403950744,1769686238879,-500.0,0.00013273,2]
[403950745,1769686238888,-500.0,0.00013273,2]
[403950746,1769686238898,-402.96126214,0.00013273,2]
[403950747,1769686238908,-500.15361623,0.00013273,2]
[403950748,1769686238917,-500.0,0.00013273,2]
[403950749,1769686238927,-500.0,0.00013273,2]
[403950750,1769686238936,-202.41865959,0.00013273,2]
[403950751,1769686238946,-201.07590603,0.00013273,2]
[403950752,1769686238955,-203.97185566,0.00013273,2]
[403950753,1769686238965,-500.0,0.00013273,2]
[403950754,1769686238974,-500.0,0.00013273,2]
[403950755,1769686238983,-500.0,0.00013273,2]
[403950756,1769686238992,-2251.88427821,0.00013301,2]
[403950757,1769686239002,-251.03981442,0.0001341,2]
[403950758,1769686239012,-500.0,0.0001341,2]
[403950759,1769686239021,-500.0,0.0001341,2]
[403950760,1769686239031,-500.0,0.0001341,2]
[403950761,1769686239041,-500.0,0.00013425,2]
[403950762,1769686239050,-151.04060416,0.00013425,2]
[403950763,1769686239059,-500.0,0.00013425,2]
[403950764,1769686239069,-284.23301321,0.00013425,2]
[403950765,1769686239079,-500.0,0.00013547,2]
[403950766,1769686239089,-250.0,0.00013547,2]
[403950767,1769686239099,-152.93513985,0.00013547,2]
[403950768,1769686239109,-500.0,0.00013547,2]
[403950769,1769686239118,-500.0,0.00013562,2]
[403950770,1769686239128,-500.0,0.00013562,2]
[403950771,1769686239138,-809.55511387,0.00013562,2]
[403950772,1769686239147,-300.0,0.00013673,2]
[403950773,1769686239156,-500.0,0.00013684,2]
[403950774,1769686239166,-321.58337595,0.00013691,2]
[403950775,1769686239175,-500.0,0.00013698,2]
[403950776,1769686239185,-500.0,0.00013698,2]
[403950777,1769686239194,-500.0,0.00013698,2]
[403950779,1769686239203,-500.0,0.00013698,2]
[403950781,1769686239214,-500.0,0.00013698,2]
[403950783,1769686239223,-500.0,0.00013698,2]
[403950785,1769686239232,-500.0,0.00013698,2]
[403950787,1769686239241,-500.0,0.00013698,2]
[403950788,1769686239250,-500.0,0.00013698,2]
[403950789,1769686239259,-500.0,0.00013698,2]
[403950790,1769686239268,-500.0,0.00013698,2]
[403950791,1769686239278,-500.0,0.00013698,2]
[403950792,1769686239287,-500.0,0.00013698,2]
[403950793,1769686239296,-500.0,0.00013698,2]
[403950794,1769686239305,-500.0,0.00013698,2]
[403950795,1769686239314,-500.0,0.00013698,2]
[403950796,1769686239324,-500.0,0.00013698,2]
[403950797,1769686239333,-500.0,0.00013698,2]
[403950798,1769686239343,-500.0,0.00013698,2]
[403950799,1769686239352,-500.0,0.00013698,2]
[403950800,1769686239362,-500.0,0.00013698,2]
[403950801,1769686239371,-500.0,0.00013698,2]
[403950802,1769686239380,-500.0,0.00013698,2]
[403950803,1769686239390,-287.74102077,0.00013698,2]
[403950804,1769686239399,-500.0,0.00013698,2]
[403950806,1769686239408,-500.0,0.00013698,2]
[403950808,1769686239418,-500.0,0.00013698,2]
[403950810,1769686239427,-500.0,0.00013698,2]
[403950813,1769686239436,-500.0,0.00013698,2]
[403950816,1769686239445,-500.0,0.00013698,2]
[403950819,1769686239454,-500.0,0.00013698,2]
[403950821,1769686239463,-583.95253597,0.00013698,2]
[403950823,1769686239472,-500.0,0.00013698,2]
[403950824,1769686239481,-500.0,0.00013698,2]
[403950825,1769686239490,-500.0,0.00013698,2]
[403950826,1769686239499,-500.0,0.00013698,2]
[403950827,1769686239508,-500.0,0.00013698,2]
[403950828,1769686239518,-500.0,0.00013698,2]
[403950829,1769686239528,-500.0,0.00013698,2]
[403950830,1769686239537,-544.76043412,0.00013698,2]
[403950831,1769686239547,-500.0,0.00013698,2]
[403950832,1769686239556,-610.45891108,0.00013698,2]
[403950834,1769686239566,-500.0,0.00013698,2]
[403950836,1769686239576,-533.70108919,0.00013698,2]
[403950838,1769686239586,-500.0,0.00013698,2]
[403950839,1769686239596,-500.0,0.00013698,2]
[403950840,1769686239605,-500.0,0.00013698,2]
[403950841,1769686239615,-500.0,0.00013698,2]
[403950842,1769686239625,-500.0,0.00013698,2]
[403950843,1769686239635,-500.0,0.00013698,2]
[403950844,1769686239647,-518.94139039,0.00013698,2]
[403950845,1769686239658,-500.0,0.00013698,2]
[403950846,1769686239667,-500.0,0.00013698,2]
[403950847,1769686239677,-500.0,0.00013698,2]
[403950848,1769686239687,-500.0,0.00013698,2]
[403950849,1769686239696,-500.0,0.00013698,2]
[403950850,1769686239705,-502.22690096,0.00013698,2]
[403950851,1769686239715,-525.32488563,0.00013698,2]
[403950852,1769686239726,-773.27,0.00013698,2]
[403950853,1769686239736,-773.27,0.00013698,2]
[403950854,1769686239745,-773.27,0.00013698,2]
[403950855,1769686239754,-773.27,0.00013698,2]
[403950856,1769686239764,-773.27,0.00013698,2]
[403950857,1769686239773,-773.27,0.00013698,2]
[403950858,1769686239783,-773.27,0.00013698,2]
[403950860,1769686239792,-773.27,0.00013698,2]
[403950862,1769686239801,-773.27,0.00013698,2]
[403950864,1769686239810,-773.27,0.00013698,2]
[403950865,1769686239819,-773.27,0.00013698,2]
[403950866,1769686239829,-773.27,0.00013698,2]
[403950867,1769686239838,-773.27,0.00013698,2]
[403950868,1769686239847,-773.27,0.00013698,2]
[403950869,1769686239857,-773.27,0.00013698,2]
[403950870,1769686239867,-773.27,0.00013698,2]
[403950871,1769686239876,-773.27,0.00013698,2]
[403950872,1769686239886,-773.27,0.00013698,2]
[403950873,1769686239895,-773.27,0.00013698,2]
[403950874,1769686239905,-773.27,0.00013698,2]
[403950875,1769686239914,-773.27,0.00013698,2]
[403950876,1769686239924,-773.27,0.00013698,2]
[403950877,1769686239934,-773.27,0.00013698,2]
[403950878,1769686239943,-773.33,0.00013698,2]
[403950879,1769686239953,-530.03606409,0.00013698,2]
[403950880,1769686239963,-500.0,0.00013698,2]
[403950881,1769686239973,-500.0,0.00013698,2]
[403950882,1769686239982,-500.0,0.00013698,2]
[403950884,1769686239992,-500.0,0.00013698,2]
[403950886,1769686240001,-500.0,0.00013698,2]
[403950887,1769686240011,-500.0,0.00013698,2]
[403950888,1769686240020,-500.0,0.00013698,2]
[403950889,1769686240030,-500.0,0.00013698,2]
[403950890,1769686240040,-500.0,0.00013698,2]
[403950891,1769686240050,-500.0,0.00013698,2]
[403950892,1769686240059,-500.0,0.00013698,2]
[403950893,1769686240069,-500.0,0.00013698,2]
[403950894,1769686240079,-500.0,0.00013698,2]
[403950895,1769686240088,-500.0,0.00013698,2]
[403950896,1769686240098,-500.0,0.00013698,2]
[403950897,1769686240107,-500.0,0.00013698,2]
[403950898,1769686240117,-500.0,0.00013698,2]
[403950899,1769686240127,-500.0,0.00013698,2]
[403950900,1769686240140,-500.0,0.00013698,2]
[403950901,1769686240150,-500.0,0.00013698,2]
[403950902,1769686240159,-500.0,0.00013698,2]
[403950903,1769686240169,-500.0,0.00013698,2]
[403950904,1769686240178,-500.0,0.00013698,2]
[403950905,1769686240188,-500.0,0.00013698,2]
[403950906,1769686240197,-2952.7637492,0.00013699,2]
[403950907,1769686240207,-1000.0,0.00013699,2]
[403950908,1769686240218,-501.76365168,0.00013699,2]
[403950909,1769686240228,-500.0,0.00013699,2]
[403950910,1769686240238,-500.75803963,0.00013699,2]
[403950911,1769686240247,-501.60095283,0.00013699,2]
[403950912,1769686240257,-500.84679195,0.00013699,2]
[403950913,1769686240267,-505.40496948,0.00013699,2]
[403950914,1769686240275,-500.0,0.00013699,2]
[403950915,1769686240285,-500.0,0.00013699,2]
[403950916,1769686240294,-507.77467851,0.00013699,2]
[403950917,1769686240303,-500.0,0.00013699,2]
[403950918,1769686240312,-291.60725507,0.00013699,2]
[403950919,1769686240321,-500.0,0.00013699,2]
[403950920,1769686240331,-500.0,0.00013699,2]
[403950921,1769686240339,-500.0,0.00013699,2]